[Event "*** Titled Tuesday 3|2 Blitz"]
[Site "Chess.com"]
[Date "2017.03.07"]
[Round "2"]
[White "ftorodent"]
[Black "GMCanty"]
[Result "0-1"]
[WhiteElo "2488"]
[BlackElo "2321"]
[TimeControl "180+2"]
[EndTime "13:22:09 PST"]
[Termination "GMCanty won by resignation"]

1. d4 {[%clk 0:03:02]} 1... Nf6 {[%clk 0:03:00.1]} 2. c4 {[%clk 0:03:02.8]} 2...
c5 {[%clk 0:02:58.8]} 3. d5 {[%clk 0:03:03.3]} 3... d6 {[%clk 0:02:59.6]} 4. Nc3
{[%clk 0:03:03.5]} 4... e5 {[%clk 0:03:01.1]} 5. e4 {[%clk 0:03:03.5]} 5... Be7
{[%clk 0:03:00.5]} 6. Bd3 {[%clk 0:03:03.4]} 6... O-O {[%clk 0:03:01.1]} 7. h3
{[%clk 0:03:04.3]} 7... Ne8 {[%clk 0:02:55.8]} 8. Nf3 {[%clk 0:03:04.5]} 8... f5
{[%clk 0:02:52]} 9. exf5 {[%clk 0:03:04.5]} 9... Bxf5 {[%clk 0:02:53.9]} 10.
Bxf5 {[%clk 0:03:05.4]} 10... Rxf5 {[%clk 0:02:55.8]} 11. Ne4 {[%clk 0:03:03.9]}
11... Nd7 {[%clk 0:02:43.5]} 12. O-O {[%clk 0:03:03.8]} 12... Rf8 {[%clk
0:02:31.2]} 13. Be3 {[%clk 0:03:02]} 13... h6 {[%clk 0:02:18.4]} 14. Nfd2 {[%clk
0:02:52.7]} 14... Nef6 {[%clk 0:02:12.4]} 15. Rb1 {[%clk 0:02:53.3]} 15... b5
{[%clk 0:02:08.1]} 16. cxb5 {[%clk 0:02:47.6]} 16... Qa5 {[%clk 0:02:05.3]} 17.
Nc4 {[%clk 0:02:43.1]} 17... Qxb5 {[%clk 0:01:40.2]} 18. Nexd6 {[%clk
0:02:43.6]} 18... Bxd6 {[%clk 0:01:37]} 19. Nxd6 {[%clk 0:02:44.6]} 19... Qa6
{[%clk 0:01:38.9]} 20. Nf5 {[%clk 0:02:36.4]} 20... Qxa2 {[%clk 0:01:38.4]} 21.
Ne7+ {[%clk 0:02:26.7]} 21... Kf7 {[%clk 0:01:34.8]} 22. d6 {[%clk 0:02:22.2]}
22... Rad8 {[%clk 0:01:05.6]} 23. Qc2 {[%clk 0:02:07.7]} 23... e4 {[%clk
0:00:54]} 24. Bxc5 {[%clk 0:02:06.4]} 24... Nxc5 {[%clk 0:00:49.2]} 25. Qxc5
{[%clk 0:02:06.9]} 25... Qe6 {[%clk 0:00:50.9]} 26. Rbd1 {[%clk 0:02:04.6]}
26... Rd7 {[%clk 0:00:48.8]} 27. Rfe1 {[%clk 0:01:56.1]} 27... Rfd8 {[%clk
0:00:47.9]} 28. Nc6 {[%clk 0:01:57.2]} 28... Re8 {[%clk 0:00:28.5]} 29. Nxa7
{[%clk 0:01:36.1]} 29... Qe5 {[%clk 0:00:21.5]} 30. Qc4+ {[%clk 0:01:31.3]}
30... Qe6 {[%clk 0:00:22.1]} 31. Qc6 {[%clk 0:01:26.4]} 31... Rxa7 {[%clk
0:00:19.7]} 32. b4 {[%clk 0:01:23.5]} 32... Qd7 {[%clk 0:00:19.4]} 33. Qc4+
{[%clk 0:01:23.1]} 33... Qe6 {[%clk 0:00:20.2]} 34. Qd4 {[%clk 0:01:22.8]} 34...
Rb7 {[%clk 0:00:21.2]} 35. Rc1 {[%clk 0:01:19]} 35... Rd8 {[%clk 0:00:22.2]} 36.
Red1 {[%clk 0:01:17.4]} 36... Rdd7 {[%clk 0:00:23.3]} 37. Rc5 {[%clk 0:01:16.3]}
37... Rb6 {[%clk 0:00:24.2]} 38. Rc7 {[%clk 0:01:06.5]} 38... Rxd6 {[%clk
0:00:25]} 39. Qxd6 {[%clk 0:01:02.1]} 39... Qxd6 {[%clk 0:00:25.4]} 40. Rxd6
{[%clk 0:01:00.9]} 40... Rxc7 {[%clk 0:00:25.8]} 41. b5 {[%clk 0:01:01.9]} 41...
Rb7 {[%clk 0:00:26.9]} 42. b6 {[%clk 0:00:57.4]} 42... Ke7 {[%clk 0:00:27.6]}
43. Rc6 {[%clk 0:00:57.4]} 43... Kd7 {[%clk 0:00:28.8]} 44. Rc5 {[%clk
0:00:57.5]} 44... Rxb6 {[%clk 0:00:30]} 45. g4 {[%clk 0:00:59.1]} 45... Ke6
{[%clk 0:00:29.5]} 46. g5 {[%clk 0:01:00]} 46... hxg5 {[%clk 0:00:30.3]} 47.
Rxg5 {[%clk 0:01:01.1]} 47... Kf7 {[%clk 0:00:31.9]} 48. Kg2 {[%clk 0:01:01.7]}
48... Rb2 {[%clk 0:00:32]} 49. Re5 {[%clk 0:01:01.9]} 49... Kg6 {[%clk 0:00:33]}
50. Kg3 {[%clk 0:01:02.8]} 50... Nh5+ {[%clk 0:00:33.8]} 51. Kg4 {[%clk
0:01:01.7]} 51... Nf6+ {[%clk 0:00:35]} 52. Kg3 {[%clk 0:01:03]} 52... Rb3+
{[%clk 0:00:36.4]} 53. Kg2 {[%clk 0:01:03.2]} 53... Rf3 {[%clk 0:00:37.8]} 54.
Rxe4 {[%clk 0:01:02.6]} 54... Rxf2+ {[%clk 0:00:39]} 0-1

[Event "*** Titled Tuesday 3|2 Blitz"]
[Site "Chess.com"]
[Date "2017.03.07"]
[Round "2"]
[White "MyleneFarmer"]
[Black "WanderingPuppet"]
[Result "1/2-1/2"]
[WhiteElo "2355"]
[BlackElo "2338"]
[TimeControl "180+2"]
[EndTime "13:22:14 PST"]
[Termination "Game drawn by repetition"]

1. d4 {[%clk 0:03:02]} 1... Nf6 {[%clk 0:02:45.4]} 2. Nf3 {[%clk 0:03:02]} 2...
g6 {[%clk 0:02:46.6]} 3. c4 {[%clk 0:03:02.3]} 3... Bg7 {[%clk 0:02:48.1]} 4.
Nc3 {[%clk 0:03:02.1]} 4... O-O {[%clk 0:02:49.5]} 5. e4 {[%clk 0:03:02.6]} 5...
d6 {[%clk 0:02:51.2]} 6. Be2 {[%clk 0:03:03.4]} 6... c5 {[%clk 0:02:52.5]} 7. d5
{[%clk 0:03:03.5]} 7... e5 {[%clk 0:02:52.7]} 8. dxe6 {[%clk 0:03:02.8]} 8...
Bxe6 {[%clk 0:02:53.2]} 9. O-O {[%clk 0:03:03.5]} 9... Nc6 {[%clk 0:02:54.3]}
10. h3 {[%clk 0:03:02.3]} 10... Qb6 {[%clk 0:02:50.4]} 11. b3 {[%clk 0:02:48.1]}
11... Nxe4 {[%clk 0:02:48.4]} 12. Nxe4 {[%clk 0:02:48.7]} 12... Bxa1 {[%clk
0:02:49]} 13. Bh6 {[%clk 0:02:49]} 13... Bg7 {[%clk 0:02:48.4]} 14. Bxg7 {[%clk
0:02:48.8]} 14... Kxg7 {[%clk 0:02:50.3]} 15. Qa1+ {[%clk 0:02:50]} 15... Nd4
{[%clk 0:02:42.2]} 16. Nxd4 {[%clk 0:02:45.8]} 16... cxd4 {[%clk 0:02:42.9]} 17.
Rd1 {[%clk 0:02:47.4]} 17... f6 {[%clk 0:02:26.7]} 18. Rxd4 {[%clk 0:02:45.6]}
18... Rad8 {[%clk 0:02:25.5]} 19. Qd1 {[%clk 0:02:43.4]} 19... Rf7 {[%clk
0:02:10.9]} 20. h4 {[%clk 0:02:40.5]} 20... Rfd7 {[%clk 0:02:06.7]} 21. Nc3
{[%clk 0:02:32.3]} 21... Qc5 {[%clk 0:01:58]} 22. Bf3 {[%clk 0:02:31.9]} 22...
a6 {[%clk 0:01:56.2]} 23. h5 {[%clk 0:02:28.1]} 23... Qe5 {[%clk 0:01:48.8]} 24.
Re4 {[%clk 0:02:21.5]} 24... Qxc3 {[%clk 0:01:44.9]} 25. Rxe6 {[%clk 0:02:19.5]}
25... b5 {[%clk 0:01:34.1]} 26. Qe2 {[%clk 0:02:09.6]} 26... Qc1+ {[%clk
0:01:20.4]} 27. Kh2 {[%clk 0:02:10.3]} 27... Rf7 {[%clk 0:01:13.5]} 28. Bd5
{[%clk 0:02:07.8]} 28... Qg5 {[%clk 0:01:06.6]} 29. hxg6 {[%clk 0:01:57.5]}
29... hxg6 {[%clk 0:01:05]} 30. Re8 {[%clk 0:01:36.8]} 30... Rxe8 {[%clk
0:00:47.6]} 31. Qxe8 {[%clk 0:01:38.7]} 31... Qf4+ {[%clk 0:00:28.9]} 32. Kg1
{[%clk 0:01:36.8]} 32... Qc1+ {[%clk 0:00:29.3]} 33. Kh2 {[%clk 0:01:38]} 33...
Qf4+ {[%clk 0:00:30.2]} 34. Kg1 {[%clk 0:01:35.5]} 34... Qc1+ {[%clk 0:00:31]}
35. Kh2 {[%clk 0:01:36.6]} 35... Qf4+ {[%clk 0:00:31.3]} 36. Kh3 {[%clk
0:01:36.8]} 36... Qh6+ {[%clk 0:00:26.5]} 37. Kg3 {[%clk 0:01:37.9]} 37... Qg5+
{[%clk 0:00:26]} 38. Kf3 {[%clk 0:01:38.6]} 38... Qf5+ {[%clk 0:00:24.1]} 39.
Kg3 {[%clk 0:01:39.6]} 39... Qg5+ {[%clk 0:00:24.6]} 40. Kh3 {[%clk 0:01:40.3]}
40... Qf5+ {[%clk 0:00:25.6]} 41. Kh2 {[%clk 0:01:34.8]} 41... Qf4+ {[%clk
0:00:25.9]} 42. Kh3 {[%clk 0:01:31.3]} 42... Qf5+ {[%clk 0:00:26.7]} 43. g4
{[%clk 0:01:30.9]} 43... Qd3+ {[%clk 0:00:26]} 44. f3 {[%clk 0:01:31.7]} 44...
Qf1+ {[%clk 0:00:25.7]} 45. Kg3 {[%clk 0:01:33.1]} 45... Qg1+ {[%clk 0:00:23.5]}
46. Kh3 {[%clk 0:01:34.6]} 46... Qh1+ {[%clk 0:00:18.1]} 47. Kg3 {[%clk
0:01:36]} 47... Qg1+ {[%clk 0:00:19.1]} 48. Kf4 {[%clk 0:01:32.1]} 48... Qd4+
{[%clk 0:00:12.7]} 49. Kg3 {[%clk 0:01:28.8]} 49... Qg1+ {[%clk 0:00:13.2]} 50.
Kh3 {[%clk 0:01:30]} 50... Qh1+ {[%clk 0:00:12.8]} 51. Kg3 {[%clk 0:01:31.6]}
51... Qg1+ {[%clk 0:00:14.1]} 52. Kf4 {[%clk 0:01:32.5]} 52... Qd4+ {[%clk
0:00:11.3]} 53. Kg3 {[%clk 0:01:13.3]} 53... Qg1+ {[%clk 0:00:11.6]} 1/2-1/2

[Event "*** Titled Tuesday 3|2 Blitz"]
[Site "Chess.com"]
[Date "2017.03.07"]
[Round "2"]
[White "Gabix_94"]
[Black "Paralinch"]
[Result "1-0"]
[WhiteElo "2518"]
[BlackElo "2607"]
[TimeControl "180+2"]
[EndTime "13:22:19 PST"]
[Termination "Gabix_94 won by resignation"]

1. e4 {[%clk 0:03:01.3]} 1... c6 {[%clk 0:03:01.1]} 2. d4 {[%clk 0:03:01.9]}
2... d5 {[%clk 0:03:02.3]} 3. Nd2 {[%clk 0:03:03.3]} 3... dxe4 {[%clk
0:03:03.3]} 4. Nxe4 {[%clk 0:03:05.2]} 4... Bf5 {[%clk 0:03:04.9]} 5. Ng3 {[%clk
0:03:06]} 5... Bg6 {[%clk 0:03:06.2]} 6. h4 {[%clk 0:03:03.4]} 6... h6 {[%clk
0:03:06.8]} 7. Bc4 {[%clk 0:03:04.4]} 7... e6 {[%clk 0:03:06.7]} 8. N1e2 {[%clk
0:03:03.1]} 8... Nf6 {[%clk 0:03:07.6]} 9. Nf4 {[%clk 0:02:54.9]} 9... Bh7
{[%clk 0:03:08.5]} 10. Be3 {[%clk 0:02:55.5]} 10... Nd5 {[%clk 0:03:05.9]} 11.
Qe2 {[%clk 0:02:50.6]} 11... Be7 {[%clk 0:02:26.1]} 12. O-O-O {[%clk 0:02:48.1]}
12... O-O {[%clk 0:02:21.7]} 13. Ngh5 {[%clk 0:02:47.4]} 13... Nxf4 {[%clk
0:01:33.1]} 14. Bxf4 {[%clk 0:02:45]} 14... Bg6 {[%clk 0:01:34.4]} 15. Rh3
{[%clk 0:02:30.2]} 15... Qa5 {[%clk 0:01:34.2]} 16. g4 {[%clk 0:01:57]} 16...
Nd7 {[%clk 0:01:05.5]} 17. Bxe6 {[%clk 0:01:51.3]} 17... fxe6 {[%clk 0:01:01.9]}
18. Qxe6+ {[%clk 0:01:51.3]} 18... Kh7 {[%clk 0:00:59.9]} 19. Qxe7 {[%clk
0:01:43.6]} 19... Rf7 {[%clk 0:00:54.9]} 20. Qe3 {[%clk 0:01:40.5]} 20... Qxa2
{[%clk 0:00:53.3]} 21. Ng3 {[%clk 0:01:22.8]} 21... Qa1+ {[%clk 0:00:48.8]} 22.
Kd2 {[%clk 0:01:22.9]} 22... Qxb2 {[%clk 0:00:50.3]} 23. Rc1 {[%clk 0:01:20.5]}
23... Re8 {[%clk 0:00:46.5]} 24. Qxe8 {[%clk 0:01:12.3]} 24... Rxf4 {[%clk
0:00:47]} 25. Qe3 {[%clk 0:01:12.7]} 25... Rxd4+ {[%clk 0:00:45.6]} 26. Ke2
{[%clk 0:01:13.9]} 26... Nf6 {[%clk 0:00:33.4]} 27. Kf3 {[%clk 0:01:04.7]} 27...
Nxg4 {[%clk 0:00:32.1]} 28. Qe1 {[%clk 0:01:03.4]} 28... Bxc2 {[%clk 0:00:25.3]}
29. Kg2 {[%clk 0:01:02]} 29... Bg6 {[%clk 0:00:21.1]} 30. h5 {[%clk 0:01:02.9]}
30... Bf7 {[%clk 0:00:21.9]} 31. Kg1 {[%clk 0:00:52.9]} 31... Nxf2 {[%clk
0:00:14.8]} 32. Rh2 {[%clk 0:00:50.9]} 32... Qxc1 {[%clk 0:00:16.1]} 33. Qxc1
{[%clk 0:00:49.1]} 33... Rd1+ {[%clk 0:00:17.7]} 34. Qxd1 {[%clk 0:00:50.6]}
34... Nxd1 {[%clk 0:00:19.6]} 35. Rd2 {[%clk 0:00:52.1]} 35... Ne3 {[%clk
0:00:14.6]} 36. Rd7 {[%clk 0:00:52.8]} 36... Bd5 {[%clk 0:00:14.5]} 37. Rxb7
{[%clk 0:00:53.2]} 37... a5 {[%clk 0:00:15.8]} 38. Ra7 {[%clk 0:00:53.4]} 38...
Ng4 {[%clk 0:00:16.6]} 39. Nf5 {[%clk 0:00:53.1]} 39... a4 {[%clk 0:00:10.9]}
40. Rxg7+ {[%clk 0:00:52.7]} 40... Kh8 {[%clk 0:00:11.9]} 41. Rxg4 {[%clk
0:00:54.6]} 41... a3 {[%clk 0:00:12.8]} 42. Ra4 {[%clk 0:00:55.1]} 42... a2
{[%clk 0:00:14.3]} 43. Ra7 {[%clk 0:00:52.5]} 43... c5 {[%clk 0:00:14.4]} 44.
Ne3 {[%clk 0:00:52.7]} 44... Bb3 {[%clk 0:00:14.7]} 45. Kf2 {[%clk 0:00:50.2]}
45... c4 {[%clk 0:00:16.1]} 46. Nd5 {[%clk 0:00:51.6]} 46... Kg8 {[%clk
0:00:15.1]} 47. Ke3 {[%clk 0:00:52.9]} 47... Kf8 {[%clk 0:00:15.6]} 48. Kd4
{[%clk 0:00:54.2]} 48... Ke8 {[%clk 0:00:17]} 49. Nc3 {[%clk 0:00:55.5]} 1-0

[Event "*** Titled Tuesday 3|2 Blitz"]
[Site "Chess.com"]
[Date "2017.03.07"]
[Round "2"]
[White "Vegan4future"]
[Black "RoelandPruijssers"]
[Result "0-1"]
[WhiteElo "2263"]
[BlackElo "2498"]
[TimeControl "180+2"]
[EndTime "13:22:19 PST"]
[Termination "RoelandPruijssers won by checkmate"]

1. d4 {[%clk 0:03:02]} 1... f5 {[%clk 0:02:58.8]} 2. Qd3 {[%clk 0:03:00.7]} 2...
e6 {[%clk 0:02:57.2]} 3. e4 {[%clk 0:02:58.9]} 3... fxe4 {[%clk 0:02:35.4]} 4.
Qxe4 {[%clk 0:03:00.8]} 4... Nf6 {[%clk 0:02:36.3]} 5. Qh4 {[%clk 0:03:01.2]}
5... Be7 {[%clk 0:02:16.2]} 6. Bg5 {[%clk 0:03:02.2]} 6... O-O {[%clk
0:02:00.3]} 7. Bd3 {[%clk 0:03:03]} 7... g6 {[%clk 0:02:00.3]} 8. Nf3 {[%clk
0:03:01.7]} 8... Nc6 {[%clk 0:02:01.1]} 9. Nc3 {[%clk 0:02:57.1]} 9... Nh5
{[%clk 0:01:49.7]} 10. Ne4 {[%clk 0:02:36.5]} 10... d5 {[%clk 0:01:43.6]} 11.
Bxe7 {[%clk 0:02:33.4]} 11... Qxe7 {[%clk 0:01:36.6]} 12. Qxe7 {[%clk
0:02:33.8]} 12... Nxe7 {[%clk 0:01:38.5]} 13. Nc5 {[%clk 0:02:03.2]} 13... Nf4
{[%clk 0:01:31.2]} 14. Bf1 {[%clk 0:01:56.8]} 14... b6 {[%clk 0:01:22.1]} 15.
Nd3 {[%clk 0:01:53.7]} 15... Nc6 {[%clk 0:01:10.6]} 16. O-O-O {[%clk 0:01:45.1]}
16... a6 {[%clk 0:01:05.9]} 17. c3 {[%clk 0:01:33.8]} 17... Nxd3+ {[%clk
0:01:03.5]} 18. Bxd3 {[%clk 0:01:32.4]} 18... Bd7 {[%clk 0:01:05]} 19. Rde1
{[%clk 0:01:31]} 19... b5 {[%clk 0:01:05.3]} 20. a3 {[%clk 0:01:31.1]} 20... Kg7
{[%clk 0:01:02.7]} 21. Re2 {[%clk 0:01:32.3]} 21... h6 {[%clk 0:01:02.7]} 22.
Rf1 {[%clk 0:01:27]} 22... g5 {[%clk 0:01:02.5]} 23. Ne5 {[%clk 0:01:27.8]}
23... Nxe5 {[%clk 0:01:02.7]} 24. Rxe5 {[%clk 0:01:29.7]} 24... Rf4 {[%clk
0:00:56.4]} 25. f3 {[%clk 0:01:29.6]} 25... Raf8 {[%clk 0:00:54.9]} 26. h3
{[%clk 0:01:28.5]} 26... R4f6 {[%clk 0:00:51.1]} 27. Rfe1 {[%clk 0:01:28.1]}
27... Rf4 {[%clk 0:00:46.1]} 28. Kd2 {[%clk 0:01:29.1]} 28... Kf6 {[%clk
0:00:42.1]} 29. b4 {[%clk 0:01:23.8]} 29... Kf7 {[%clk 0:00:35.4]} 30. R1e3
{[%clk 0:01:19.3]} 30... a5 {[%clk 0:00:36.5]} 31. Kc2 {[%clk 0:01:06.1]} 31...
Ra8 {[%clk 0:00:36.5]} 32. Kb2 {[%clk 0:01:06.6]} 32... Rf6 {[%clk 0:00:31.1]}
33. Re1 {[%clk 0:01:04.5]} 33... c6 {[%clk 0:00:29.1]} 34. Rh1 {[%clk
0:00:51.1]} 34... Rf4 {[%clk 0:00:27.5]} 35. Ra1 {[%clk 0:00:50.4]} 35... Ke7
{[%clk 0:00:26.3]} 36. Ree1 {[%clk 0:00:46.3]} 36... Kd6 {[%clk 0:00:25.9]} 37.
a4 {[%clk 0:00:34.1]} 37... axb4 {[%clk 0:00:23.5]} 38. axb5 {[%clk 0:00:35.5]}
38... Rxa1 {[%clk 0:00:23.5]} 39. Rxa1 {[%clk 0:00:35.6]} 39... cxb5 {[%clk
0:00:22.6]} 40. cxb4 {[%clk 0:00:36]} 40... Rxd4 {[%clk 0:00:23.2]} 41. Kc3
{[%clk 0:00:37.7]} 41... Rf4 {[%clk 0:00:21.5]} 42. Ra5 {[%clk 0:00:38]} 42...
e5 {[%clk 0:00:20.1]} 43. Ra6+ {[%clk 0:00:34]} 43... Kc7 {[%clk 0:00:20.6]} 44.
Rxh6 {[%clk 0:00:35]} 44... e4 {[%clk 0:00:21.9]} 45. Be2 {[%clk 0:00:36.5]}
45... d4+ {[%clk 0:00:21.9]} 46. Kd2 {[%clk 0:00:35.9]} 46... e3+ {[%clk
0:00:23]} 47. Kd3 {[%clk 0:00:37.4]} 47... Bf5# {[%clk 0:00:24]} 0-1

[Event "*** Titled Tuesday 3|2 Blitz"]
[Site "Chess.com"]
[Date "2017.03.07"]
[Round "2"]
[White "Cecile_Haussernot"]
[Black "GMOratovsky"]
[Result "1-0"]
[WhiteElo "2282"]
[BlackElo "2384"]
[TimeControl "180+2"]
[EndTime "13:22:35 PST"]
[Termination "Cecile_Haussernot won by checkmate"]

1. Nf3 {[%clk 0:03:02]} 1... d6 {[%clk 0:02:53.2]} 2. g3 {[%clk 0:02:58]} 2...
g6 {[%clk 0:02:51.7]} 3. Bg2 {[%clk 0:02:58.9]} 3... Bg7 {[%clk 0:02:53.2]} 4.
O-O {[%clk 0:03:00.2]} 4... Nf6 {[%clk 0:02:51.1]} 5. d3 {[%clk 0:02:55.7]} 5...
O-O {[%clk 0:02:50.4]} 6. e4 {[%clk 0:02:57]} 6... c5 {[%clk 0:02:51.8]} 7. c3
{[%clk 0:02:41.9]} 7... Nc6 {[%clk 0:02:52]} 8. h3 {[%clk 0:02:39.8]} 8... Rb8
{[%clk 0:02:49.1]} 9. Be3 {[%clk 0:02:35.9]} 9... Bd7 {[%clk 0:02:42.8]} 10.
Nbd2 {[%clk 0:02:35.4]} 10... b5 {[%clk 0:02:42.5]} 11. d4 {[%clk 0:02:34.7]}
11... cxd4 {[%clk 0:02:14.6]} 12. cxd4 {[%clk 0:02:35.5]} 12... a5 {[%clk
0:01:57.9]} 13. Rc1 {[%clk 0:02:32.1]} 13... Rc8 {[%clk 0:01:55.3]} 14. g4
{[%clk 0:02:20.4]} 14... Nb4 {[%clk 0:01:35.4]} 15. a3 {[%clk 0:02:11.8]} 15...
Na6 {[%clk 0:01:13]} 16. Qe2 {[%clk 0:01:46.5]} 16... Rxc1 {[%clk 0:01:06.1]}
17. Rxc1 {[%clk 0:01:46.6]} 17... Qb8 {[%clk 0:01:06.8]} 18. Qd3 {[%clk
0:01:36]} 18... Rc8 {[%clk 0:01:06.5]} 19. Re1 {[%clk 0:01:37.2]} 19... b4
{[%clk 0:01:00.9]} 20. Qxa6 {[%clk 0:01:35.3]} 20... bxa3 {[%clk 0:00:51.4]} 21.
bxa3 {[%clk 0:01:35.1]} 21... a4 {[%clk 0:00:49.9]} 22. e5 {[%clk 0:01:32.5]}
22... dxe5 {[%clk 0:00:43.3]} 23. dxe5 {[%clk 0:01:30.6]} 23... Nd5 {[%clk
0:00:38.3]} 24. Rb1 {[%clk 0:01:26.9]} 24... Qc7 {[%clk 0:00:37.8]} 25. Bd4
{[%clk 0:01:22.6]} 25... Nf4 {[%clk 0:00:35.1]} 26. Ne4 {[%clk 0:01:00.3]} 26...
Nxg2 {[%clk 0:00:35.3]} 27. Kxg2 {[%clk 0:01:01.3]} 27... Bc6 {[%clk 0:00:36.7]}
28. Rc1 {[%clk 0:00:58.2]} 28... Qd7 {[%clk 0:00:38]} 29. Nc5 {[%clk 0:00:57.5]}
29... Bxf3+ {[%clk 0:00:30.7]} 30. Kxf3 {[%clk 0:00:57.5]} 30... Qd5+ {[%clk
0:00:32.1]} 31. Ke3 {[%clk 0:00:56.2]} 31... Ra8 {[%clk 0:00:31]} 32. Qb7 {[%clk
0:00:54.2]} 32... Qd8 {[%clk 0:00:27]} 33. Nd7 {[%clk 0:00:50.4]} 33... Bh6+
{[%clk 0:00:23.3]} 34. f4 {[%clk 0:00:51.4]} 34... Kg7 {[%clk 0:00:21.6]} 35.
e6+ {[%clk 0:00:51.2]} 35... f6 {[%clk 0:00:23]} 36. Bb6 {[%clk 0:00:52]} 36...
Qg8 {[%clk 0:00:23]} 37. Bd4 {[%clk 0:00:46.7]} 37... Qxe6+ {[%clk 0:00:23.6]}
38. Kf3 {[%clk 0:00:46.3]} 38... Rd8 {[%clk 0:00:23]} 39. Nc5 {[%clk 0:00:41.9]}
39... Qd6 {[%clk 0:00:22]} 40. Re1 {[%clk 0:00:36.9]} 40... Qxf4+ {[%clk
0:00:22.5]} 41. Kg2 {[%clk 0:00:38.2]} 41... Qd2+ {[%clk 0:00:19]} 42. Bf2
{[%clk 0:00:38.8]} 42... Kh8 {[%clk 0:00:07.4]} 43. Rxe7 {[%clk 0:00:36.6]}
43... Qd5+ {[%clk 0:00:06.4]} 44. Qxd5 {[%clk 0:00:37.4]} 44... Rxd5 {[%clk
0:00:08.3]} 45. Ne6 {[%clk 0:00:38.4]} 45... Bc1 {[%clk 0:00:03.8]} 46. Re8#
{[%clk 0:00:39.2]} 1-0

[Event "*** Titled Tuesday 3|2 Blitz"]
[Site "Chess.com"]
[Date "2017.03.07"]
[Round "2"]
[White "Carolina-moon"]
[Black "olgerts_indricans"]
[Result "0-1"]
[WhiteElo "2071"]
[BlackElo "2193"]
[TimeControl "180+2"]
[EndTime "13:22:36 PST"]
[Termination "olgerts_indricans won by checkmate"]

1. e4 {[%clk 0:03:02]} 1... c5 {[%clk 0:02:56.1]} 2. Nc3 {[%clk 0:02:59.9]} 2...
e6 {[%clk 0:02:56]} 3. g3 {[%clk 0:02:58.4]} 3... d5 {[%clk 0:02:56.1]} 4. exd5
{[%clk 0:02:58.6]} 4... exd5 {[%clk 0:02:56.5]} 5. Bg2 {[%clk 0:02:57.4]} 5...
d4 {[%clk 0:02:56.8]} 6. Nd5 {[%clk 0:02:57.9]} 6... Nf6 {[%clk 0:02:53]} 7.
Qe2+ {[%clk 0:02:56]} 7... Be7 {[%clk 0:02:37.8]} 8. Nxf6+ {[%clk 0:02:54.9]}
8... gxf6 {[%clk 0:02:39.7]} 9. d3 {[%clk 0:02:47.7]} 9... h5 {[%clk 0:02:38.2]}
10. Nf3 {[%clk 0:02:44]} 10... Nc6 {[%clk 0:02:35.8]} 11. Bf4 {[%clk 0:02:38.6]}
11... Bg4 {[%clk 0:02:34.9]} 12. h3 {[%clk 0:02:38.8]} 12... Be6 {[%clk
0:02:34.8]} 13. Nd2 {[%clk 0:02:33.8]} 13... Qd7 {[%clk 0:02:22.7]} 14. O-O-O
{[%clk 0:02:21.9]} 14... O-O-O {[%clk 0:02:17.7]} 15. Rde1 {[%clk 0:02:17.9]}
15... Bd6 {[%clk 0:02:06.6]} 16. Bxd6 {[%clk 0:02:11.4]} 16... Qxd6 {[%clk
0:02:06.5]} 17. Ne4 {[%clk 0:02:06.6]} 17... Qe7 {[%clk 0:01:57.4]} 18. Qd2
{[%clk 0:02:00.3]} 18... f5 {[%clk 0:01:23.5]} 19. Ng5 {[%clk 0:01:58.5]} 19...
h4 {[%clk 0:01:23.6]} 20. Qf4 {[%clk 0:01:55.1]} 20... hxg3 {[%clk 0:01:15.6]}
21. fxg3 {[%clk 0:01:55.3]} 21... Rdg8 {[%clk 0:01:13.1]} 22. h4 {[%clk
0:01:53.3]} 22... Nb4 {[%clk 0:01:09.6]} 23. a3 {[%clk 0:01:46.8]} 23... Na6
{[%clk 0:01:01.6]} 24. Bh3 {[%clk 0:01:27.3]} 24... Qf6 {[%clk 0:00:51.8]} 25.
Re5 {[%clk 0:01:12.8]} 25... b6 {[%clk 0:00:29.1]} 26. Rhe1 {[%clk 0:01:10.5]}
26... Nc7 {[%clk 0:00:24.6]} 27. Ne4 {[%clk 0:01:04.8]} 27... Qg6 {[%clk
0:00:18.7]} 28. Nd6+ {[%clk 0:01:01.9]} 28... Kd7 {[%clk 0:00:18.5]} 29. Bxf5
{[%clk 0:00:58.3]} 29... Qxg3 {[%clk 0:00:18.8]} 30. Bxe6+ {[%clk 0:00:55]}
30... fxe6 {[%clk 0:00:19.7]} 31. Qxg3 {[%clk 0:00:48.6]} 31... Rxg3 {[%clk
0:00:20.6]} 32. Ne4 {[%clk 0:00:48]} 32... Rg2 {[%clk 0:00:20.1]} 33. Ng5 {[%clk
0:00:48.4]} 33... Rxh4 {[%clk 0:00:19.3]} 34. Nxe6 {[%clk 0:00:48.7]} 34... Rhh2
{[%clk 0:00:18.6]} 35. Nf8+ {[%clk 0:00:48.4]} 35... Kc6 {[%clk 0:00:18.9]} 36.
Kb1 {[%clk 0:00:11.5]} 36... Rxc2 {[%clk 0:00:18.9]} 37. Ka1 {[%clk 0:00:12.8]}
37... Rxb2 {[%clk 0:00:19.2]} 38. Rg5 {[%clk 0:00:13.1]} 38... Ra2+ {[%clk
0:00:17.7]} 39. Kb1 {[%clk 0:00:14.5]} 39... Rhb2+ {[%clk 0:00:19.1]} 40. Kc1
{[%clk 0:00:16]} 40... Rc2+ {[%clk 0:00:20.2]} 41. Kb1 {[%clk 0:00:17.4]} 41...
Nb5 {[%clk 0:00:20.5]} 42. Rg6+ {[%clk 0:00:16.2]} 42... Kb7 {[%clk 0:00:20.6]}
43. Re7+ {[%clk 0:00:12.9]} 43... Ka6 {[%clk 0:00:20.5]} 44. Nd7 {[%clk
0:00:14.2]} 44... Nxa3# {[%clk 0:00:19.8]} 0-1